[Event "44th Chess Olympiad Women 2022"]
[Site "Chennai"]
[Date "2022.07.29"]
[Round "1.36"]
[White "Terao, Juliana Sayumi"]
[Black "Laaribi, Mariem"]
[Result "1-0"]
[WhiteElo "2223"]
[BlackElo "1278"]
[Annotator "NA RC"]
[PlyCount "49"]
[EventDate "2022.??.??"]
[TimeControl "60"]

1. e4 {[%emt 0:00:03]} c5 {[%emt 0:00:11]} 2. c3 {[%emt 0:00:16]} d6 {[%emt 0:
00:00]} 3. d4 {[%emt 0:00:23]} cxd4 {[%emt 0:00:45]} 4. cxd4 {[%emt 0:00:08]}
Nf6 {[%emt 0:00:15]} 5. Nc3 {[%emt 0:00:14]} e6 {[%emt 0:00:51]} 6. Nf3 {
[%emt 0:00:35]} Be7 {[%emt 0:00:39]} 7. Bd3 {[%emt 0:01:01]} O-O {[%emt 0:00:
00]} 8. O-O {[%emt 0:00:35]} Bd7 {[%emt 0:00:55]} 9. Qe2 {[%emt 0:06:16]} Bc6 {
[%emt 0:02:12]} 10. Rd1 {[%emt 0:01:30]} Nbd7 {[%emt 0:01:18]} 11. Bc2 {
[%emt 0:06:39]} d5 {[%emt 0:04:07]} 12. e5 {[%emt 0:02:33]} Ne4 {[%emt 0:01:04]
} 13. Nxe4 {[%emt 0:01:35]} dxe4 {[%emt 0:01:29]} 14. Bxe4 {[%emt 0:00:07]}
Bxe4 {[%emt 0:00:38]} 15. Qxe4 {[%emt 0:00:07]} b5 {[%emt 0:01:46]} 16. d5 {
[%emt 0:03:54]} Nc5 {[%emt 0:02:41]} 17. Qg4 {[%emt 0:03:12]} f5 {[%emt 0:00:
00]} 18. exf6 {[%emt 0:01:29]} Bxf6 {[%emt 0:01:42]} 19. Be3 {[%emt 0:00:41]}
Nb7 {[%emt 0:05:38]} 20. dxe6 {[%emt 0:00:51]} Qe7 {[%emt 0:01:38]} 21. Rd7 {
[%emt 0:00:22]} Qe8 {[%emt 0:01:19]} 22. Rxb7 {[%emt 0:00:11]} a6 {[%emt 0:00:
00]} 23. Rd1 {[%emt 0:01:48]} Qc6 {[%emt 0:01:48]} 24. Rdd7 {[%emt 0:00:56]}
Kh8 {[%emt 0:03:49]} 25. Rbc7 {[%emt 0:02:12]} 1-0

[Event "44th Chess Olympiad Women 2022"]
[Site "Chennai"]
[Date "2022.07.29"]
[Round "1.37"]
[White "Ali, Amy"]
[Black "Trippold, Denise"]
[Result "0-1"]
[WhiteElo "1361"]
[BlackElo "2151"]
[Annotator "RC"]
[PlyCount "72"]
[EventDate "2022.??.??"]
[TimeControl "60"]

1. d4 {[%emt 0:00:04]} Nf6 {[%emt 0:00:07]} 2. c4 {[%emt 0:00:05]} e6 {[%emt 0:
00:00]} 3. g3 {[%emt 0:00:10]} d5 {[%emt 0:00:51]} 4. Bg2 {[%emt 0:00:28]} Be7
{[%emt 0:00:34]} 5. Nf3 {[%emt 0:00:27]} O-O {[%emt 0:00:36]} 6. O-O {[%emt 0:
00:00]} c6 {[%emt 0:00:21]} 7. Nc3 {[%emt 0:00:27]} b6 {[%emt 0:02:43]} 8. Qc2
{[%emt 0:02:07]} Ba6 {[%emt 0:08:16]} 9. Ne5 {[%emt 0:13:26]} Nfd7 {[%emt 0:00:
00]} 10. Bf4 {[%emt 0:20:53]} Nxe5 {[%emt 0:01:24]} 11. Bxe5 {[%emt 0:02:28]}
Bxc4 {[%emt 0:02:27]} 12. Rfe1 {[%emt 0:12:27]} Nd7 {[%emt 0:09:28]} 13. Bf4 {
[%emt 0:03:20]} Ba6 {[%emt 0:03:05]} 14. e4 {[%emt 0:05:11]} Nf6 {[%emt 0:00:
00]} 15. e5 {[%emt 0:05:19]} Nd7 {[%emt 0:00:17]} 16. a3 {[%emt 0:03:12]} c5 {
[%emt 0:02:00]} 17. Rad1 {[%emt 0:04:35]} Rc8 {[%emt 0:14:31]} 18. Qa4 {
[%emt 0:06:28]} Nb8 {[%emt 0:01:25]} 19. dxc5 {[%emt 0:05:48]} bxc5 {[%emt 0:
00:00]} 20. Bf1 {[%emt 0:01:14]} Bxf1 {[%emt 0:01:04]} 21. Kxf1 {[%emt 0:01:42]
} Qb6 {[%emt 0:04:53]} 22. Qb5 {[%emt 0:03:38]} Qxb5+ {[%emt 0:01:16]} 23. Nxb5
{[%emt 0:00:06]} Nc6 {[%emt 0:00:45]} 24. Nd6 {[%emt 0:04:02]} Rb8 {[%emt 0:00:
00]} 25. Bc1 {[%emt 0:02:39]} Nxe5 {[%emt 0:05:10]} 26. Rxe5 {[%emt 0:00:17]}
Bxd6 {[%emt 0:00:04]} 27. Re2 {[%emt 0:00:34]} Rb3 {[%emt 0:01:48]} 28. Re3 {
[%emt 0:01:47]} Rfb8 {[%emt 0:00:28]} 29. Rdd3 {[%emt 0:00:38]} Rxd3 {[%emt 0:
00:00]} 30. Rxd3 {[%emt 0:00:06]} c4 {[%emt 0:00:57]} 31. Rc3 {[%emt 0:00:42]}
Be5 {[%emt 0:00:32]} 32. Rc2 {[%emt 0:00:26]} Kf8 {[%emt 0:02:56]} 33. Ke2 {
[%emt 0:00:46]} Rb3 {[%emt 0:01:29]} 34. h3 {[%emt 0:00:36]} Ke7 {[%emt 0:00:
00]} 35. Kd2 {[%emt 0:00:31]} Kd6 {[%emt 0:00:19]} 36. Ke2 {[%emt 0:00:22]} Kc5
{[%emt 0:00:22]} 0-1

[Event "44th Chess Olympiad Women 2022"]
[Site "Chennai"]
[Date "2022.07.29"]
[Round "1.37"]
[White "Hapala, Elisabeth"]
[Black "Mohammed, Celine Angelina"]
[Result "1-0"]
[WhiteElo "2113"]
[BlackElo "1100"]
[Annotator "NA RC"]
[PlyCount "89"]
[EventDate "2022.??.??"]
[TimeControl "60"]

1. e4 {[%emt 0:00:03]} e5 {[%emt 0:00:07]} 2. Nf3 {[%emt 0:00:03]} Nc6 {
[%emt 0:00:09]} 3. Bb5 {[%emt 0:00:05]} a6 {[%emt 0:00:53]} 4. Ba4 {[%emt 0:00:
00]} Nf6 {[%emt 0:00:25]} 5. O-O {[%emt 0:00:09]} b5 {[%emt 0:00:22]} 6. Bb3 {
[%emt 0:00:05]} Be7 {[%emt 0:00:28]} 7. Re1 {[%emt 0:04:46]} O-O {[%emt 0:00:
00]} 8. c3 {[%emt 0:00:28]} d5 {[%emt 0:03:15]} 9. exd5 {[%emt 0:00:05]} Nxd5 {
[%emt 0:00:08]} 10. Nxe5 {[%emt 0:01:17]} Nxe5 {[%emt 0:12:05]} 11. Rxe5 {
[%emt 0:00:08]} Bb7 {[%emt 0:02:54]} 12. d4 {[%emt 0:06:38]} f6 {[%emt 0:05:36]
} 13. Re1 {[%emt 0:08:57]} Kh8 {[%emt 0:12:07]} 14. Nd2 {[%emt 0:23:26]} Bd6 {
[%emt 0:02:35]} 15. Ne4 {[%emt 0:04:46]} Re8 {[%emt 0:04:19]} 16. Nxd6 {
[%emt 0:11:06]} Rxe1+ {[%emt 0:02:52]} 17. Qxe1 {[%emt 0:00:02]} Qxd6 {[%emt 0:
00:00]} 18. Bd2 {[%emt 0:00:54]} Qc6 {[%emt 0:02:49]} 19. f3 {[%emt 0:03:23]}
Re8 {[%emt 0:05:17]} 20. Qf2 {[%emt 0:01:32]} Qd6 {[%emt 0:01:35]} 21. Re1 {
[%emt 0:02:44]} Rxe1+ {[%emt 0:03:31]} 22. Qxe1 {[%emt 0:00:06]} Qe7 {[%emt 0:
00:00]} 23. Qxe7 {[%emt 0:10:06]} Nxe7 {[%emt 0:00:12]} 24. Bf4 {[%emt 0:00:17]
} c6 {[%emt 0:03:43]} 25. a4 {[%emt 0:04:47]} g5 {[%emt 0:03:34]} 26. Bd2 {
[%emt 0:04:32]} Kg7 {[%emt 0:01:20]} 27. Kf2 {[%emt 0:00:42]} Nf5 {[%emt 0:00:
00]} 28. Bc2 {[%emt 0:04:50]} Nd6 {[%emt 0:00:34]} 29. axb5 {[%emt 0:00:27]}
axb5 {[%emt 0:00:55]} 30. Ke2 {[%emt 0:05:56]} Nc4 {[%emt 0:00:36]} 31. Bc1 {
[%emt 0:00:35]} h6 {[%emt 0:00:16]} 32. b3 {[%emt 0:00:22]} Nd6 {[%emt 0:00:10]
} 33. Ba3 {[%emt 0:00:13]} Nc8 {[%emt 0:00:44]} 34. Bc5 {[%emt 0:00:17]} Kf7 {
[%emt 0:00:18]} 35. c4 {[%emt 0:01:02]} bxc4 {[%emt 0:00:21]} 36. bxc4 {
[%emt 0:00:05]} Ne7 {[%emt 0:00:26]} 37. Kd2 {[%emt 0:00:41]} Ke6 {[%emt 0:00:
00]} 38. g4 {[%emt 0:01:41]} Kf7 {[%emt 0:06:49]} 39. Kc3 {[%emt 0:00:30]} Ng8
{[%emt 0:01:25]} 40. Kb4 {[%emt 0:00:24]} Ne7 {[%emt 0:00:51]} 41. Ka5 {
[%emt 0:30:54]} Bc8 {[%emt 0:30:58]} 42. Kb6 {[%emt 0:00:00]} Ke8 {[%emt 0:00:
00]} 43. Bxe7 {[%emt 0:00:00]} Kxe7 {[%emt 0:00:00]} 44. Kxc6 {[%emt 0:00:00]}
Bd7+ {[%emt 0:00:00]} 45. Kc7 {[%emt 0:00:00]} 1-0

[Event "44th Chess Olympiad Women 2022"]
[Site "Chennai"]
[Date "2022.07.29"]
[Round "1.37"]
[White "La Fleur, Zara"]
[Black "Newrkla, Katharina"]
[Result "0-1"]
[WhiteElo "1513"]
[BlackElo "2265"]
[Annotator "RC"]
[PlyCount "148"]
[EventDate "2022.??.??"]
[TimeControl "60"]

1. e4 {[%emt 0:00:05]} c5 {[%emt 0:00:05]} 2. Nf3 {[%emt 0:00:10]} d6 {[%emt 0:
00:00]} 3. d4 {[%emt 0:00:13]} cxd4 {[%emt 0:00:05]} 4. Nxd4 {[%emt 0:00:20]}
Nf6 {[%emt 0:00:06]} 5. Nc3 {[%emt 0:00:30]} a6 {[%emt 0:00:05]} 6. Be2 {
[%emt 0:02:20]} e5 {[%emt 0:00:11]} 7. Nb3 {[%emt 0:01:03]} Be7 {[%emt 0:00:07]
} 8. Be3 {[%emt 0:01:25]} Be6 {[%emt 0:00:07]} 9. O-O {[%emt 0:01:07]} O-O {
[%emt 0:00:13]} 10. f3 {[%emt 0:08:02]} Nbd7 {[%emt 0:06:24]} 11. a4 {[%emt 0:
00:00]} Rc8 {[%emt 0:06:02]} 12. a5 {[%emt 0:04:46]} Qc7 {[%emt 0:00:45]} 13.
Qd2 {[%emt 0:04:19]} Rfd8 {[%emt 0:08:25]} 14. Rfc1 {[%emt 0:15:49]} Nc5 {
[%emt 0:09:06]} 15. Nxc5 {[%emt 0:01:42]} dxc5 {[%emt 0:00:06]} 16. Qe1 {
[%emt 0:00:44]} c4 {[%emt 0:07:03]} 17. Kh1 {[%emt 0:11:56]} Bc5 {[%emt 0:00:
00]} 18. Bf1 {[%emt 0:04:57]} h6 {[%emt 0:04:46]} 19. Na4 {[%emt 0:06:14]} Bxe3
{[%emt 0:03:36]} 20. Qxe3 {[%emt 0:00:44]} Qxa5 {[%emt 0:05:08]} 21. Nb6 {
[%emt 0:09:18]} Qc5 {[%emt 0:00:14]} 22. Qxc5 {[%emt 0:01:16]} Rxc5 {[%emt 0:
00:00]} 23. Rd1 {[%emt 0:00:42]} Rxd1 {[%emt 0:08:24]} 24. Rxd1 {[%emt 0:00:11]
} g5 {[%emt 0:06:36]} 25. h3 {[%emt 0:03:04]} h5 {[%emt 0:01:55]} 26. g4 {
[%emt 0:04:05]} Kg7 {[%emt 0:03:34]} 27. Kg2 {[%emt 0:00:47]} h4 {[%emt 0:00:
00]} 28. Kf2 {[%emt 0:01:53]} Rc6 {[%emt 0:05:34]} 29. Nd5 {[%emt 0:01:33]}
Bxd5 {[%emt 0:02:45]} 30. exd5 {[%emt 0:00:07]} Rc8 {[%emt 0:00:19]} 31. d6 {
[%emt 0:01:33]} b5 {[%emt 0:02:20]} 32. Ke3 {[%emt 0:01:12]} Kf8 {[%emt 0:00:
00]} 33. d7 {[%emt 0:00:40]} Rd8 {[%emt 0:00:20]} 34. Rd6 {[%emt 0:00:18]} Ke7
{[%emt 0:01:30]} 35. Rxa6 {[%emt 0:00:08]} Rxd7 {[%emt 0:00:13]} 36. Ra5 {
[%emt 0:00:39]} Rb7 {[%emt 0:02:00]} 37. c3 {[%emt 0:01:50]} Rb6 {[%emt 0:00:
00]} 38. Ra7+ {[%emt 0:00:16]} Ke6 {[%emt 0:00:31]} 39. Ra5 {[%emt 0:00:27]}
Nd5+ {[%emt 0:01:00]} 40. Ke4 {[%emt 0:00:20]} Nf6+ {[%emt 0:00:42]} 41. Ke3 {
[%emt 0:30:09]} Ne8 {[%emt 0:30:31]} 42. b3 {[%emt 0:01:17]} cxb3 {[%emt 0:00:
00]} 43. Rxb5 {[%emt 0:00:11]} Rxb5 {[%emt 0:00:00]} 44. Bxb5 {[%emt 0:00:00]}
Nd6 {[%emt 0:00:00]} 45. Bd3 {[%emt 0:00:00]} Kd5 {[%emt 0:00:00]} 46. Ke2 {
[%emt 0:00:00]} Nc4 {[%emt 0:00:00]} 47. Be4+ {[%emt 0:00:00]} Kc5 {[%emt 0:00:
00]} 48. Kd1 {[%emt 0:00:00]} Na3 {[%emt 0:00:00]} 49. Kc1 {[%emt 0:00:00]} Kc4
{[%emt 0:00:00]} 50. Kb2 {[%emt 0:00:00]} Nb5 {[%emt 0:00:00]} 51. Bb7 {
[%emt 0:02:20]} Nxc3 {[%emt 0:00:00]} 52. Ba6+ {[%emt 0:00:34]} Kb4 {[%emt 0:
00:00]} 53. Kc1 {[%emt 0:01:41]} Ka3 {[%emt 0:00:00]} 54. Bd3 {[%emt 0:00:57]}
b2+ {[%emt 0:00:00]} 55. Kd2 {[%emt 0:00:30]} Kb4 {[%emt 0:00:00]} 56. Ke3 {
[%emt 0:00:37]} Kc5 {[%emt 0:00:00]} 57. Bc2 {[%emt 0:00:35]} Kd5 {[%emt 0:00:
00]} 58. Bb3+ {[%emt 0:00:25]} Kd6 {[%emt 0:00:00]} 59. Bc2 {[%emt 0:00:33]}
b1=Q {[%emt 0:00:00]} 60. Bxb1 {[%emt 0:00:00]} Nxb1 {[%emt 0:00:00]} 61. Ke4 {
[%emt 0:00:15]} Ke6 {[%emt 0:00:00]} 62. Ke3 {[%emt 0:00:38]} Nc3 {[%emt 0:00:
00]} 63. Kf2 {[%emt 0:00:28]} Nd5 {[%emt 0:00:00]} 64. Kg2 {[%emt 0:01:04]}
Nf4+ {[%emt 0:00:00]} 65. Kh2 {[%emt 0:00:07]} Kd5 {[%emt 0:00:00]} 66. Kh1 {
[%emt 0:00:15]} Kd4 {[%emt 0:00:00]} 67. Kh2 {[%emt 0:00:14]} Ke3 {[%emt 0:00:
00]} 68. Kh1 {[%emt 0:00:54]} Kxf3 {[%emt 0:00:00]} 69. Kg1 {[%emt 0:00:29]} e4
{[%emt 0:00:00]} 70. Kh2 {[%emt 0:00:00]} Kf2 {[%emt 0:00:00]} 71. Kh1 {
[%emt 0:00:14]} e3 {[%emt 0:00:00]} 72. Kh2 {[%emt 0:00:04]} e2 {[%emt 0:00:00]
} 73. Kh1 {[%emt 0:00:09]} e1=Q+ {[%emt 0:00:00]} 74. Kh2 {[%emt 0:00:04]} Qg1#
{[%emt 0:00:00]} 0-1

[Event "44th Chess Olympiad Women 2022"]
[Site "Chennai"]
[Date "2022.07.29"]
[Round "1.37"]
[White "Polterauer, Chiara"]
[Black "James, Shemilah"]
[Result "1/2-1/2"]
[WhiteElo "2183"]
[BlackElo "1590"]
[Annotator "RC"]
[PlyCount "131"]
[EventDate "2022.??.??"]
[TimeControl "60"]

1. e4 {[%emt 0:00:03]} e5 {[%emt 0:00:11]} 2. Nf3 {[%emt 0:00:06]} Nc6 {
[%emt 0:00:11]} 3. Bc4 {[%emt 0:00:12]} Bc5 {[%emt 0:00:10]} 4. c3 {[%emt 0:00:
00]} Nf6 {[%emt 0:00:15]} 5. d3 {[%emt 0:00:09]} O-O {[%emt 0:00:43]} 6. Nbd2 {
[%emt 0:00:17]} d6 {[%emt 0:00:26]} 7. h3 {[%emt 0:00:58]} a6 {[%emt 0:00:39]}
8. Bb3 {[%emt 0:00:15]} Ba7 {[%emt 0:00:40]} 9. Nf1 {[%emt 0:04:39]} h6 {
[%emt 0:01:17]} 10. g4 {[%emt 0:02:37]} d5 {[%emt 0:10:40]} 11. Qe2 {[%emt 0:
00:00]} dxe4 {[%emt 0:02:41]} 12. dxe4 {[%emt 0:00:17]} Re8 {[%emt 0:03:43]}
13. Ng3 {[%emt 0:01:34]} Be6 {[%emt 0:02:11]} 14. g5 {[%emt 0:01:52]} hxg5 {
[%emt 0:03:26]} 15. Bxg5 {[%emt 0:00:24]} Bxb3 {[%emt 0:02:09]} 16. axb3 {
[%emt 0:00:10]} Qd6 {[%emt 0:06:24]} 17. Rg1 {[%emt 0:09:18]} Kf8 {[%emt 0:00:
00]} 18. Nf5 {[%emt 0:14:39]} Qc5 {[%emt 0:07:07]} 19. Be3 {[%emt 0:20:49]} Qb5
{[%emt 0:04:04]} 20. Bxa7 {[%emt 0:01:59]} Qxe2+ {[%emt 0:02:38]} 21. Kxe2 {
[%emt 0:00:04]} Rxa7 {[%emt 0:01:00]} 22. Nxg7 {[%emt 0:00:54]} Rd8 {[%emt 0:
00:00]} 23. Ke3 {[%emt 0:00:34]} Raa8 {[%emt 0:01:34]} 24. Rg2 {[%emt 0:07:28]}
Rd7 {[%emt 0:04:18]} 25. Rag1 {[%emt 0:02:06]} Rad8 {[%emt 0:04:17]} 26. Nf5 {
[%emt 0:07:36]} Rd1 {[%emt 0:03:26]} 27. Rxd1 {[%emt 0:03:50]} Rxd1 {[%emt 0:
00:00]} 28. Rg1 {[%emt 0:00:35]} Rd7 {[%emt 0:02:39]} 29. Rg5 {[%emt 0:04:10]}
Rd1 {[%emt 0:01:18]} 30. Rg1 {[%emt 0:04:13]} Rd7 {[%emt 0:00:09]} 31. Ng3 {
[%emt 0:00:17]} Rd6 {[%emt 0:02:33]} 32. Nd2 {[%emt 0:03:00]} Nd7 {[%emt 0:00:
00]} 33. h4 {[%emt 0:01:32]} Rg6 {[%emt 0:02:49]} 34. Rh1 {[%emt 0:01:56]} Nf6
{[%emt 0:00:50]} 35. Ke2 {[%emt 0:03:56]} Ne7 {[%emt 0:01:43]} 36. Nc4 {
[%emt 0:00:28]} Nd7 {[%emt 0:00:37]} 37. Ne3 {[%emt 0:01:04]} Nc5 {[%emt 0:00:
00]} 38. h5 {[%emt 0:00:31]} Rh6 {[%emt 0:00:39]} 39. Nef5 {[%emt 0:01:36]} Rh7
{[%emt 0:00:59]} 40. Nxe7 {[%emt 0:01:50]} Kxe7 {[%emt 0:00:13]} 41. h6 {
[%emt 0:04:12]} Nxb3 {[%emt 0:05:35]} 42. Nf5+ {[%emt 0:00:35]} Kf6 {[%emt 0:
00:00]} 43. Ke3 {[%emt 0:05:50]} Nc5 {[%emt 0:01:37]} 44. Rd1 {[%emt 0:00:22]}
a5 {[%emt 0:09:47]} 45. f4 {[%emt 0:05:37]} exf4+ {[%emt 0:03:02]} 46. Kxf4 {
[%emt 0:00:04]} Ne6+ {[%emt 0:00:53]} 47. Ke3 {[%emt 0:00:05]} b6 {[%emt 0:00:
00]} 48. Rg1 {[%emt 0:02:45]} Ng5 {[%emt 0:03:37]} 49. Rd1 {[%emt 0:04:28]} Ne6
{[%emt 0:01:29]} 50. Rf1 {[%emt 0:03:11]} Ke5 {[%emt 0:02:03]} 51. Rh1 {
[%emt 0:00:28]} Kf6 {[%emt 0:01:59]} 52. Rh5 {[%emt 0:00:27]} Ng5 {[%emt 0:00:
00]} 53. Kf4 {[%emt 0:02:08]} Ne6+ {[%emt 0:01:02]} 54. Kg4 {[%emt 0:00:59]}
Nc5 {[%emt 0:00:54]} 55. Kf3 {[%emt 0:00:33]} Ne6 {[%emt 0:00:26]} 56. b4 {
[%emt 0:02:34]} axb4 {[%emt 0:00:50]} 57. cxb4 {[%emt 0:00:04]} c5 {[%emt 0:00:
00]} 58. bxc5 {[%emt 0:00:38]} bxc5 {[%emt 0:00:09]} 59. Kg4 {[%emt 0:00:19]}
Nd4 {[%emt 0:01:14]} 60. Ne3 {[%emt 0:03:13]} Kg6 {[%emt 0:01:15]} 61. Rxc5 {
[%emt 0:01:17]} Rxh6 {[%emt 0:00:12]} 62. Rd5 {[%emt 0:00:36]} Ne6 {[%emt 0:00:
00]} 63. Rd6 {[%emt 0:00:12]} Rh1 {[%emt 0:00:44]} 64. Ra6 {[%emt 0:00:52]} Kf6
{[%emt 0:00:25]} 65. Kf3 {[%emt 0:00:10]} Rh3+ {[%emt 0:00:19]} 66. Kf2 {
[%emt 0:00:54]} 1/2-1/2

[Event "44th Chess Olympiad Women 2022"]
[Site "Chennai"]
[Date "2022.07.29"]
[Round "1.38"]
[White "Masoumi, Sahar"]
[Black "Saraci, Ndriqona"]
[Result "1-0"]
[WhiteElo "1956"]
[BlackElo "1425"]
[Annotator "NA"]
[PlyCount "45"]
[EventDate "2022.??.??"]
[TimeControl "60"]

1. e4 {[%emt 0:00:07]} c5 {[%emt 0:00:35]} 2. c3 {[%emt 0:00:09]} Qc7 {[%emt 0:
00:00]} 3. d4 {[%emt 0:01:32]} cxd4 {[%emt 0:01:20]} 4. cxd4 {[%emt 0:00:13]}
e6 {[%emt 0:01:30]} 5. Nc3 {[%emt 0:00:44]} Bb4 {[%emt 0:01:35]} 6. Bd2 {
[%emt 0:01:37]} a6 {[%emt 0:04:04]} 7. Rc1 {[%emt 0:01:12]} Qd8 {[%emt 0:00:53]
} 8. Bd3 {[%emt 0:04:35]} d5 {[%emt 0:01:33]} 9. e5 {[%emt 0:02:35]} Nc6 {
[%emt 0:01:13]} 10. Nf3 {[%emt 0:04:43]} Nge7 {[%emt 0:05:48]} 11. O-O {
[%emt 0:00:23]} Na5 {[%emt 0:02:49]} 12. Ng5 {[%emt 0:12:11]} g6 {[%emt 0:00:
00]} 13. Qf3 {[%emt 0:02:35]} O-O {[%emt 0:06:34]} 14. Nxh7 {[%emt 0:07:36]}
Nf5 {[%emt 0:06:54]} 15. Nf6+ {[%emt 0:03:36]} Kg7 {[%emt 0:01:48]} 16. Bxf5 {
[%emt 0:00:14]} Rh8 {[%emt 0:03:12]} 17. Bd3 {[%emt 0:02:35]} Nc4 {[%emt 0:00:
00]} 18. Bg5 {[%emt 0:01:53]} Be7 {[%emt 0:01:28]} 19. Bxc4 {[%emt 0:00:32]}
dxc4 {[%emt 0:00:19]} 20. d5 {[%emt 0:00:18]} exd5 {[%emt 0:02:07]} 21. Ncxd5 {
[%emt 0:00:10]} Be6 {[%emt 0:00:47]} 22. Nxe7 {[%emt 0:00:39]} Qxe7 {[%emt 0:
00:00]} 23. Nh5+ {[%emt 0:00:10]} 1-0

[Event "44th Chess Olympiad Women 2022"]
[Site "Chennai"]
[Date "2022.07.29"]
[Round "1.38"]
[White "Saraci, Rinesa"]
[Black "Mahdian, Anousha"]
[Result "0-1"]
[WhiteElo "1494"]
[BlackElo "2161"]
[Annotator "RC"]
[PlyCount "69"]
[EventDate "2022.??.??"]
[TimeControl "60"]

1. e4 {[%emt 0:00:06]} c6 {[%emt 0:00:05]} 2. d4 {[%emt 0:01:05]} d5 {[%emt 0:
00:00]} 3. Nc3 {[%emt 0:00:58]} g6 {[%emt 0:00:50]} 4. Nf3 {[%emt 0:01:19]} Bg7
{[%emt 0:00:04]} 5. exd5 {[%emt 0:05:41]} cxd5 {[%emt 0:00:44]} 6. Bf4 {
[%emt 0:01:09]} a6 {[%emt 0:05:07]} 7. h3 {[%emt 0:03:28]} Nf6 {[%emt 0:04:09]}
8. Be2 {[%emt 0:02:53]} O-O {[%emt 0:02:24]} 9. O-O {[%emt 0:02:08]} Nc6 {
[%emt 0:04:33]} 10. Re1 {[%emt 0:06:52]} Ne4 {[%emt 0:06:18]} 11. Bf1 {[%emt 0:
00:00]} f5 {[%emt 0:10:12]} 12. Rc1 {[%emt 0:12:49]} e6 {[%emt 0:02:25]} 13.
Ne5 {[%emt 0:10:36]} Qb6 {[%emt 0:14:54]} 14. f3 {[%emt 0:08:31]} Nxe5 {
[%emt 0:02:29]} 15. fxe4 {[%emt 0:04:42]} fxe4 {[%emt 0:00:42]} 16. Be3 {
[%emt 0:06:15]} Nc6 {[%emt 0:03:22]} 17. Nxe4 {[%emt 0:11:53]} dxe4 {[%emt 0:
00:00]} 18. d5 {[%emt 0:04:27]} Bd4 {[%emt 0:00:17]} 19. Bxd4 {[%emt 0:01:32]}
Nxd4 {[%emt 0:00:15]} 20. Kh1 {[%emt 0:00:54]} Nf5 {[%emt 0:00:14]} 21. c4 {
[%emt 0:04:16]} Ng3+ {[%emt 0:01:38]} 22. Kh2 {[%emt 0:00:27]} Qd6 {[%emt 0:00:
00]} 23. Kg1 {[%emt 0:00:39]} exd5 {[%emt 0:02:35]} 24. Qxd5+ {[%emt 0:01:00]}
Qxd5 {[%emt 0:00:05]} 25. cxd5 {[%emt 0:00:02]} Nxf1 {[%emt 0:00:10]} 26. Rxf1
{[%emt 0:00:05]} Rxf1+ {[%emt 0:00:21]} 27. Kxf1 {[%emt 0:00:32]} Bd7 {[%emt 0:
00:00]} 28. Rc7 {[%emt 0:00:30]} Bb5+ {[%emt 0:00:05]} 29. Kf2 {[%emt 0:00:28]}
Rd8 {[%emt 0:00:17]} 30. Ke3 {[%emt 0:01:22]} Rxd5 {[%emt 0:00:15]} 31. Kxe4 {
[%emt 0:00:10]} Bc6 {[%emt 0:00:30]} 32. Ke3 {[%emt 0:01:03]} Re5+ {[%emt 0:00:
00]} 33. Kf4 {[%emt 0:00:42]} Rf5+ {[%emt 0:00:07]} 34. Ke3 {[%emt 0:00:28]}
Bxg2 {[%emt 0:00:11]} 35. Kd4 {[%emt 0:00:09]} 0-1

[Event "44th Chess Olympiad Women 2022"]
[Site "Chennai"]
[Date "2022.07.29"]
[Round "1.38"]
[White "Sharku, Enesa"]
[Black "Asgharzadeh, Mitra"]
[Result "0-1"]
[WhiteElo "1094"]
[BlackElo "1988"]
[Annotator "NA"]
[PlyCount "112"]
[EventDate "2022.??.??"]
[TimeControl "60"]

1. e4 {[%emt 0:00:05]} c5 {[%emt 0:00:09]} 2. Nf3 {[%emt 0:00:37]} d6 {[%emt 0:
00:00]} 3. d4 {[%emt 0:00:44]} cxd4 {[%emt 0:00:07]} 4. Nxd4 {[%emt 0:00:37]}
Nf6 {[%emt 0:00:11]} 5. Nc3 {[%emt 0:01:10]} g6 {[%emt 0:00:08]} 6. Be3 {
[%emt 0:01:13]} Bg7 {[%emt 0:00:11]} 7. Be2 {[%emt 0:01:55]} O-O {[%emt 0:00:
00]} 8. Qd2 {[%emt 0:00:43]} Nc6 {[%emt 0:00:16]} 9. Nb3 {[%emt 0:03:11]} Ng4 {
[%emt 0:02:03]} 10. Bxg4 {[%emt 0:02:48]} Bxg4 {[%emt 0:00:02]} 11. O-O {
[%emt 0:04:49]} Rc8 {[%emt 0:07:45]} 12. Bh6 {[%emt 0:03:56]} a6 {[%emt 0:00:
00]} 13. Bxg7 {[%emt 0:04:17]} Kxg7 {[%emt 0:00:03]} 14. a4 {[%emt 0:00:47]}
Ne5 {[%emt 0:05:15]} 15. h3 {[%emt 0:03:42]} Bd7 {[%emt 0:06:27]} 16. f4 {
[%emt 0:07:12]} Nc4 {[%emt 0:01:10]} 17. Qd4+ {[%emt 0:02:31]} e5 {[%emt 0:00:
00]} 18. fxe5 {[%emt 0:01:36]} dxe5 {[%emt 0:00:13]} 19. Qd3 {[%emt 0:02:34]}
Nxb2 {[%emt 0:03:40]} 20. Qf3 {[%emt 0:02:45]} Be6 {[%emt 0:01:33]} 21. Rab1 {
[%emt 0:02:31]} Bxb3 {[%emt 0:02:37]} 22. Rxb2 {[%emt 0:06:54]} Qd4+ {[%emt 0:
00:00]} 23. Qf2 {[%emt 0:03:42]} Qxf2+ {[%emt 0:03:07]} 24. Rxf2 {[%emt 0:00:
00]} Rxc3 {[%emt 0:00:08]} 25. Rxb3 {[%emt 0:00:08]} Rxb3 {[%emt 0:00:12]} 26.
cxb3 {[%emt 0:00:09]} Rd8 {[%emt 0:00:13]} 27. Rc2 {[%emt 0:01:46]} Rd3 {
[%emt 0:00:12]} 28. Rc5 {[%emt 0:01:33]} Kf6 {[%emt 0:00:37]} 29. b4 {[%emt 0:
00:00]} Rd4 {[%emt 0:00:16]} 30. b5 {[%emt 0:00:19]} Rxa4 {[%emt 0:00:25]} 31.
bxa6 {[%emt 0:00:21]} bxa6 {[%emt 0:00:39]} 32. Kf2 {[%emt 0:04:47]} a5 {
[%emt 0:05:02]} 33. Kf3 {[%emt 0:02:42]} Ra3+ {[%emt 0:00:13]} 34. Ke2 {
[%emt 0:00:54]} a4 {[%emt 0:00:42]} 35. Rc6+ {[%emt 0:01:26]} Kg5 {[%emt 0:00:
00]} 36. Rc7 {[%emt 0:01:54]} Ra2+ {[%emt 0:01:11]} 37. Kf3 {[%emt 0:01:06]}
Ra1 {[%emt 0:00:16]} 38. Kg3 {[%emt 0:01:52]} Kf6 {[%emt 0:03:32]} 39. Rc6+ {
[%emt 0:01:43]} Kg7 {[%emt 0:00:14]} 40. Ra6 {[%emt 0:03:39]} a3 {[%emt 0:00:
00]} 41. Kg4 {[%emt 0:30:38]} a2 {[%emt 0:30:17]} 42. h4 {[%emt 0:01:39]} h5+ {
[%emt 0:00:27]} 43. Kg3 {[%emt 0:01:03]} f5 {[%emt 0:00:15]} 44. Ra7+ {[%emt 0:
00:00]} Kf6 {[%emt 0:00:13]} 45. Ra6+ {[%emt 0:01:11]} Ke7 {[%emt 0:00:06]} 46.
exf5 {[%emt 0:01:20]} gxf5 {[%emt 0:00:02]} 47. Ra7+ {[%emt 0:00:16]} Kd6 {
[%emt 0:00:08]} 48. Ra6+ {[%emt 0:00:23]} Kc5 {[%emt 0:00:23]} 49. Ra5+ {
[%emt 0:00:50]} Kb4 {[%emt 0:00:10]} 50. Ra7 {[%emt 0:01:44]} f4+ {[%emt 0:00:
00]} 51. Kf2 {[%emt 0:00:20]} e4 {[%emt 0:00:06]} 52. Rb7+ {[%emt 0:00:44]} Kc5
{[%emt 0:00:07]} 53. Ra7 {[%emt 0:00:49]} e3+ {[%emt 0:00:05]} 54. Kf3 {
[%emt 0:00:17]} Rf1+ {[%emt 0:00:11]} 55. Ke2 {[%emt 0:01:13]} a1=Q {[%emt 0:
00:00]} 56. Rxa1 {[%emt 0:00:11]} Rxa1 {[%emt 0:00:02]} 0-1